fUSD/lending_fUSD_20260108
["ID","MTS","AMOUNT","RATE_DAILY","PERIOD"]
[401040697,1767892242067,-291.23257492,0.00012134,2]
[401040699,1767892242076,-500.0,0.00012134,2]
[401040701,1767892242086,-485.28044378,0.00012134,2]
[401040703,1767892242095,-189.67870237,0.00012134,2]
[401040705,1767892242106,-500.0,0.00012135,2]
[401040707,1767892242116,-271.8,0.00012135,2]
[401040709,1767892242126,-13879.88,0.00012135,2]
[401040711,1767892242135,-160.53,0.00012135,2]
[401040713,1767892242148,-150.0,0.00012135,2]
[401040715,1767892242158,-228.72,0.00012135,2]
[401040717,1767892242167,-9999.99,0.00012135,2]
[401040719,1767892242178,-9999.99,0.00012135,2]
[401040721,1767892242187,-175.3190678,0.00012389,2]
[401040723,1767892242196,-1191.147,0.00012389,2]
[401040725,1767892242206,-1026.76992162,0.00012389,2]
[401040727,1767892242216,-227.44219373,0.0001239,2]
[401040729,1767892242225,-150.787676,0.00012549,2]
[401040731,1767892242234,-508.23242878,0.00012549,2]
[401040733,1767892242243,-508.23242878,0.00012549,2]
[401040735,1767892242253,-151.0,0.00012558,2]
[401040737,1767892242265,-151.0,0.00012558,2]
[401040739,1767892242274,-151.0,0.00012558,2]
[401040741,1767892242284,-151.0,0.00012558,2]
[401040743,1767892242293,-151.0,0.00012558,2]
[401040745,1767892242303,-151.0,0.00012558,2]
[401040747,1767892242313,-151.0,0.00012558,2]
[401040749,1767892242322,-200.0,0.00012558,2]
[401040751,1767892242332,-151.0,0.00012558,2]
[401040753,1767892242342,-151.0,0.00012558,2]
[401040755,1767892242355,-151.0,0.00012558,2]
[401040757,1767892242364,-151.0,0.00012558,2]
[401040759,1767892242373,-200.0,0.00012558,2]
[401040761,1767892242383,-1680.0,0.00012789,2]
[401040763,1767892242392,-255.0,0.00013211,2]
[401040765,1767892242402,-150.78767594,0.00013218,2]
[401040767,1767892242411,-508.23242876,0.00013313,2]
[401040769,1767892242422,-508.23242876,0.00013313,2]
[401040771,1767892242431,-150.0,0.00013696,2]
[401040773,1767892242442,-500.0,0.00013698,2]
[401040776,1767892242451,-500.0,0.00013698,2]
[401040778,1767892242461,-500.0,0.00013698,2]
[401040780,1767892242469,-500.0,0.00013698,2]
[401040781,1767892242479,-500.0,0.00013698,2]
[401040783,1767892242488,-182.02591241,0.00013698,2]
[401040785,1767892242498,-200.0,0.00013699,2]
[401040787,1767892242507,-150.78767594,0.00013887,2]
[401040789,1767892242516,-158.98726626,0.00013889,2]
[401040791,1767892242525,-250.0,0.00013967,2]
[401040793,1767892242535,-2351.0,0.00014068,2]
[401040796,1767892242546,-508.23242876,0.00014078,2]
[401040798,1767892242555,-508.23242876,0.00014078,2]
[401040800,1767892242565,-358.0,0.00014211,2]
[401040802,1767892242574,-433.0,0.00014388,2]
[401040804,1767892242584,-150.78767594,0.00014556,2]
[401040806,1767892242593,-500.0,0.00014763,2]
[401040808,1767892242604,-508.23242876,0.00014842,2]
[401040810,1767892242615,-469.43074462,0.00014843,2]
[401040812,1767892242624,-150.78767594,0.00015225,2]
[401040814,1767892242634,-200.0,0.00015297,2]
[401040816,1767892242643,-1000.0,0.0001531,2]
[401040818,1767892242653,-3292.0,0.00015475,2]
[401040820,1767892242663,-298.6,0.00015624,2]
[401040823,1767892242674,-596.66,0.00015624,2]
[401040825,1767892242684,-402.12022584,0.0001564,2]
[401040827,1767892242694,-736.0,0.00015661,2]
[401040829,1767892242703,-157.72323008,0.00015846,2]
[401040831,1767892242713,-1500.0,0.00015858,2]
[401040833,1767892242723,-150.78767594,0.00015893,2]
[401040835,1767892242733,-1000.0,0.00015918,2]
[401040837,1767892242742,-482.72,0.00016082,2]
[401040839,1767892242752,-482.72,0.00016082,2]
[401040841,1767892242761,-482.72,0.00016082,2]
[401040843,1767892242770,-482.72,0.00016082,2]
[401040845,1767892242780,-482.72,0.00016082,2]
[401040847,1767892242790,-482.72,0.00016082,2]
[401040849,1767892242800,-482.72,0.00016082,2]
[401040851,1767892242809,-7747.65,0.00016116,2]
[401040853,1767892242818,-2113.75,0.00016163,2]
[401040855,1767892242828,-620.0,0.0001627,2]
[401040857,1767892242837,-578.20924308,0.0001627,2]
[401040859,1767892242847,-151.0,0.0001627,2]
[401040861,1767892242856,-1500.0,0.0001627,2]
[401040863,1767892242866,-293.26916709,0.0001627,2]
[401040865,1767892242876,-574.12855637,0.0001627,2]
[401040867,1767892242885,-1500.0,0.0001627,2]
[401040869,1767892242894,-1500.0,0.0001627,2]
[401040871,1767892242903,-1500.0,0.0001627,2]
[401040873,1767892242912,-1500.0,0.0001627,2]
[401040875,1767892242921,-1316.20759869,0.0001627,2]
[401040877,1767892242937,-1500.0,0.0001627,2]
[401040880,1767892242950,-1500.0,0.0001627,2]
[401040882,1767892242960,-1500.0,0.0001627,2]
[401040884,1767892242970,-1500.0,0.0001627,2]
[401040886,1767892242979,-500.0,0.0001627,2]
[401040888,1767892242989,-500.0,0.0001627,2]
[401040890,1767892242998,-500.0,0.0001627,2]
[401040892,1767892243008,-1500.0,0.0001627,2]
[401040894,1767892243018,-500.0,0.0001627,2]
[401040896,1767892243027,-500.0,0.0001627,2]
[401040898,1767892243037,-1500.0,0.0001627,2]
[401040901,1767892243046,-500.0,0.0001627,2]
[401040903,1767892243055,-500.0,0.0001627,2]
[401040906,1767892243064,-500.0,0.0001627,2]
[401040909,1767892243074,-500.0,0.0001627,2]
[401040912,1767892243084,-500.0,0.0001627,2]
[401040914,1767892243097,-300.0,0.0001627,2]
[401040916,1767892243108,-500.0,0.0001627,2]
[401040918,1767892243118,-500.0,0.0001627,2]
[401040920,1767892243127,-721.12765535,0.0001627,2]
[401040922,1767892243136,-500.0,0.0001627,2]
[401040924,1767892243145,-500.0,0.0001627,2]
[401040926,1767892243154,-500.0,0.0001627,2]
[401040928,1767892243164,-500.0,0.0001627,2]
[401040930,1767892243173,-500.0,0.0001627,2]
[401040932,1767892243182,-500.0,0.0001627,2]
[401040935,1767892243191,-500.0,0.0001627,2]
[401040937,1767892243200,-510.34840278,0.0001627,2]
[401040940,1767892243210,-500.0,0.0001627,2]
[401040943,1767892243219,-500.0,0.0001627,2]
[401040946,1767892243228,-500.0,0.0001627,2]
[401040949,1767892243238,-500.0,0.0001627,2]
[401040951,1767892243247,-322.6107,0.0001627,2]
[401040953,1767892243256,-500.0,0.0001627,2]
[401040955,1767892243265,-500.0,0.0001627,2]
[401040957,1767892243278,-500.0,0.0001627,2]
[401040959,1767892243288,-500.0,0.0001627,2]
[401040961,1767892243298,-500.0,0.0001627,2]
[401040963,1767892243308,-500.0,0.0001627,2]
[401040965,1767892243318,-500.0,0.0001627,2]
[401040967,1767892243328,-151.0,0.0001627,2]
[401040969,1767892243337,-500.0,0.0001627,2]
[401040972,1767892243347,-162.7023203,0.0001627,2]
[401040974,1767892243358,-500.0,0.0001627,2]
[401040975,1767892243367,-500.0,0.0001627,2]
[401040978,1767892243377,-500.0,0.0001627,2]
[401040980,1767892243387,-500.0,0.0001627,2]
[401040982,1767892243396,-250.0,0.0001627,2]
[401040984,1767892243405,-500.0,0.0001627,2]
[401040986,1767892243415,-250.0,0.0001627,2]
[401040988,1767892243425,-500.0,0.0001627,2]
[401040990,1767892243434,-500.0,0.0001627,2]
[401040992,1767892243444,-250.0,0.0001627,2]
[401040994,1767892243453,-500.0,0.0001627,2]
[401040996,1767892243462,-250.0,0.0001627,2]
[401040998,1767892243472,-500.0,0.0001627,2]
[401041000,1767892243481,-500.0,0.0001627,2]
[401041002,1767892243495,-394.3952879,0.0001627,2]
[401041004,1767892243505,-500.0,0.0001627,2]
[401041006,1767892243516,-500.0,0.0001627,2]
[401041008,1767892243525,-250.0,0.0001627,2]
[401041009,1767892243535,-500.0,0.0001627,2]
[401041010,1767892243545,-250.0,0.0001627,2]
[401041011,1767892243558,-500.0,0.0001627,2]
[401041012,1767892243569,-250.0,0.0001627,2]
[401041013,1767892243580,-500.0,0.0001627,2]
[401041014,1767892243591,-250.0,0.0001627,2]
[401041015,1767892243604,-500.0,0.0001627,2]
[401041016,1767892243616,-250.0,0.0001627,2]
[401041017,1767892243627,-500.0,0.0001627,2]
[401041018,1767892243638,-250.0,0.0001627,2]
[401041019,1767892243649,-500.0,0.0001627,2]
[401041020,1767892243660,-250.0,0.0001627,2]
[401041021,1767892243670,-500.0,0.0001627,2]
[401041022,1767892243680,-250.0,0.0001627,2]
[401041024,1767892243690,-2000.0,0.0001627,2]
[401041026,1767892243700,-500.0,0.0001627,2]
[401041028,1767892243709,-250.0,0.0001627,2]
[401041030,1767892243719,-2000.0,0.0001627,2]
[401041032,1767892243729,-500.0,0.0001627,2]
[401041034,1767892243739,-250.0,0.0001627,2]
[401041036,1767892243749,-151.0,0.0001627,2]
[401041039,1767892243759,-2000.0,0.0001627,2]
[401041041,1767892243769,-250.0,0.0001627,2]
[401041043,1767892243780,-2000.0,0.0001627,2]
[401041045,1767892243789,-2000.0,0.0001627,2]
[401041047,1767892243799,-2000.0,0.0001627,2]
[401041049,1767892243810,-2000.0,0.0001627,2]
[401041051,1767892243820,-2000.0,0.0001627,2]
[401041053,1767892243832,-2000.0,0.0001627,2]
[401041055,1767892243860,-2000.0,0.0001627,2]
[401041058,1767892243900,-2000.0,0.0001627,2]
[401041061,1767892243934,-1111.67,0.00016356,2]
[401041064,1767892243963,-466.71,0.00016356,2]
[401041068,1767892243992,-179.09,0.00016356,2]
[401041071,1767892244016,-1224.84,0.00016356,2]
[401041073,1767892244039,-171.35,0.00016356,2]
[401041075,1767892244061,-466.71,0.00016356,2]
[401041077,1767892244084,-150.0,0.00016356,2]
[401041079,1767892244113,-150.0,0.00016356,2]
[401041081,1767892244145,-1224.84,0.00016356,2]
[401041083,1767892244164,-179.09,0.00016356,2]
[401041085,1767892244175,-171.35,0.00016356,2]
[401041087,1767892244185,-150.0,0.00016356,2]
[401041089,1767892244195,-466.71,0.00016356,2]
[401041091,1767892244205,-150.0,0.00016356,2]
[401041093,1767892244216,-179.09,0.00016356,2]
[401041095,1767892244227,-1224.84,0.00016356,2]
[401041098,1767892244237,-171.35,0.00016356,2]
[401041100,1767892244247,-150.0,0.00016356,2]
[401041102,1767892244258,-466.71,0.00016356,2]
[401041104,1767892244275,-171.35,0.00016356,2]
[401041106,1767892244284,-179.09,0.00016356,2]
[401041108,1767892244294,-1224.84,0.00016356,2]
[401041110,1767892244305,-150.0,0.00016356,2]
[401041112,1767892244315,-466.71,0.00016356,2]
[401041114,1767892244325,-1224.84,0.00016356,2]
[401041116,1767892244335,-179.09,0.00016356,2]
[401041119,1767892244347,-150.0,0.00016356,2]
[401041121,1767892244358,-171.35,0.00016356,2]
[401041123,1767892244368,-265.56,0.00016356,2]
[401041125,1767892244378,-181.49,0.00016356,2]
[401041127,1767892244388,-2518.56,0.00016356,2]
[401041129,1767892244398,-171.35,0.00016356,2]
[401041131,1767892244408,-171.35,0.00016356,2]
[401041133,1767892244420,-2000.0,0.00016406,2]
[401041135,1767892244430,-500.0,0.00016437,2]
[401041137,1767892244440,-500.0,0.00016438,2]
[401041140,1767892244450,-500.0,0.00016438,2]
[401041142,1767892244460,-500.0,0.00016438,2]
[401041144,1767892244470,-539.37870219,0.00016438,2]
[401041146,1767892244480,-500.0,0.00016438,2]
[401041148,1767892244490,-20339.12,0.00016438,2]
[401041150,1767892244500,-4856.41,0.00016455,2]
[401041152,1767892244512,-1000.0,0.00016515,2]
[401041155,1767892244523,-322.3,0.00016554,2]
[401041159,1767892244534,-150.78767594,0.00016562,2]
[401041161,1767892244545,-322.3,0.00016685,2]
[401041163,1767892244555,-322.3,0.00016817,2]
[401041165,1767892244565,-151.0,0.00016818,2]
[401041167,1767892244576,-595.37131296,0.00016818,2]
[401041169,1767892244586,-311.1,0.00016818,2]
[401041171,1767892244598,-151.0,0.00016818,2]
[401041173,1767892244608,-157.72323008,0.00016836,2]
[401041175,1767892244618,-150.0,0.00016904,2]
[401041178,1767892244628,-150.0,0.00016904,2]
[401041180,1767892244641,-150.0,0.00016904,2]
[401041182,1767892244651,-150.0,0.00016904,2]
[401041184,1767892244661,-322.3,0.00016948,2]
[401041186,1767892244671,-446.20279251,0.00016954,2]
[401041188,1767892244683,-50623.16,0.00016986,2]
[401041190,1767892244693,-3032.44949746,0.00017,2]
[401041193,1767892244703,-4609.0,0.00017022,2]
[401041195,1767892244714,-661.47,0.00017041,2]
[401041197,1767892244724,-661.47,0.00017041,2]
[401041199,1767892244734,-661.47,0.00017041,2]
[401041201,1767892244744,-1252.0,0.00017056,2]
[401041203,1767892244754,-322.3,0.0001708,2]
[401041205,1767892244764,-1000.0,0.00017112,2]
[401041207,1767892244774,-150.0,0.00017178,2]
[401041209,1767892244783,-150.0,0.00017178,2]
[401041211,1767892244793,-150.0,0.00017178,2]
[401041213,1767892244803,-171.35,0.00017178,2]
[401041216,1767892244813,-150.0,0.00017178,2]
[401041218,1767892244823,-150.0,0.00017178,2]
[401041220,1767892244833,-150.0,0.00017178,2]
[401041222,1767892244843,-150.0,0.00017178,2]
[401041224,1767892244853,-150.0,0.00017178,2]
[401041226,1767892244863,-150.0,0.00017178,2]
[401041228,1767892244873,-150.0,0.00017178,2]
[401041230,1767892244883,-322.3,0.00017211,2]
[401041232,1767892244893,-150.78767594,0.00017231,2]
[401041234,1767892244903,-322.3,0.00017343,2]
[401041236,1767892244913,-200.0,0.00017365,2]
[401041238,1767892244923,-166.77833559,0.00017366,2]
[401041240,1767892244932,-617.40005154,0.00017366,2]
[401041243,1767892244942,-322.6107,0.00017366,2]
[401041245,1767892244952,-151.0,0.00017366,2]
[401041247,1767892244962,-2436.0,0.00017414,2]
[401041249,1767892244971,-6552.0,0.00017414,2]
[401041284,1767892245282,-565.0,0.00017414,2]
[401041286,1767892245292,-322.3,0.00017474,2]
[401041288,1767892245305,-596.66,0.00017577,2]
[401041290,1767892245315,-322.3,0.00017606,2]
[401041292,1767892245324,-642.94,0.00017639,2]
[401041294,1767892245334,-334.5472959,0.00017639,2]
[401041297,1767892245344,-3775.78522432,0.0001764,2]
[401041299,1767892245355,-469.43074462,0.00017654,2]
[401041301,1767892245365,-214.12448155,0.00017699,2]
[401041303,1767892245375,-500.0,0.00017699,2]
[401041305,1767892245384,-500.0,0.00017699,2]
[401041307,1767892245394,-500.0,0.00017699,2]
[401041309,1767892245403,-164.77040348,0.00017699,2]
[401041311,1767892245413,-500.0,0.00017699,2]
[401041313,1767892245422,-500.0,0.00017699,2]
[401041315,1767892245432,-150.0,0.00017699,2]
[401041317,1767892245442,-150.0,0.00017699,2]
[401041319,1767892245451,-153.65010095,0.00017699,2]
[401041321,1767892245461,-500.0,0.00017699,2]
[401041323,1767892245471,-150.0,0.00017699,2]
[401041325,1767892245480,-229.07945925,0.00017699,2]
[401041327,1767892245489,-150.0,0.00017699,2]
[401041329,1767892245498,-150.0,0.00017699,2]
[401041331,1767892245508,-500.0,0.00017699,2]
[401041333,1767892245517,-150.0,0.00017699,2]
[401041335,1767892245526,-159.6010049,0.00017699,2]
[401041337,1767892245537,-150.0,0.00017699,2]
[401041339,1767892245547,-150.0,0.00017699,2]
[401041341,1767892245557,-150.0,0.00017699,2]
[401041343,1767892245569,-150.0,0.00017699,2]
[401041345,1767892245578,-500.0,0.00017699,2]
[401041347,1767892245588,-500.0,0.00017699,2]
[401041349,1767892245597,-500.0,0.00017699,2]
[401041351,1767892245609,-150.0,0.00017699,2]
[401041353,1767892245619,-500.0,0.00017699,2]
[401041355,1767892245629,-500.0,0.00017699,2]
[401041358,1767892245640,-500.0,0.00017699,2]
[401041360,1767892245649,-150.0,0.00017699,2]
[401041362,1767892245659,-500.0,0.00017699,2]
[401041363,1767892245669,-150.0,0.00017699,2]
[401041365,1767892245679,-500.0,0.00017699,2]
[401041368,1767892245688,-500.0,0.00017699,2]
[401041370,1767892245698,-500.0,0.00017699,2]
[401041372,1767892245708,-500.0,0.00017699,2]
[401041374,1767892245718,-500.0,0.00017699,2]
[401041376,1767892245728,-150.0,0.00017699,2]
[401041378,1767892245738,-150.0,0.00017699,2]
[401041380,1767892245748,-3337.9992808,0.000177,2]
[401041382,1767892245757,-1000.0,0.00017709,2]
[401041384,1767892245767,-322.3,0.00017737,2]
[401041386,1767892245777,-500.0,0.00017754,2]
[401041388,1767892245787,-500.0,0.00017754,2]
[401041390,1767892245797,-500.0,0.00017754,2]
[401041392,1767892245806,-500.0,0.00017754,2]
[401041394,1767892245815,-500.0,0.00017754,2]
[401041396,1767892245824,-150.0,0.00017754,2]
[401041398,1767892245834,-200.0,0.00017754,2]
[401041400,1767892245843,-500.0,0.00017754,2]
[401041402,1767892245854,-150.0,0.00017754,2]
[401041404,1767892245863,-500.0,0.00017754,2]
[401041406,1767892245872,-150.0,0.00017754,2]
[401041408,1767892245881,-150.0,0.00017754,2]
[401041410,1767892245890,-150.0,0.00017754,2]
[401041412,1767892245900,-150.0,0.00017754,2]
[401041414,1767892245909,-150.0,0.00017754,2]
[401041416,1767892245918,-500.0,0.00017754,2]
[401041418,1767892245927,-500.0,0.00017754,2]
[401041420,1767892245937,-500.0,0.00017754,2]
[401041422,1767892245947,-150.0,0.00017754,2]
[401041424,1767892245956,-500.0,0.00017754,2]
[401041427,1767892245966,-500.0,0.00017754,2]
[401041429,1767892245976,-490.19225777,0.00017754,2]
[401041431,1767892245985,-150.0,0.00017754,2]
[401041433,1767892245994,-500.0,0.00017754,2]
[401041434,1767892246004,-500.0,0.00017754,2]
[401041436,1767892246013,-500.0,0.00017754,2]
[401041438,1767892246024,-500.0,0.00017754,2]
[401041441,1767892246033,-500.0,0.00017754,2]
[401041442,1767892246043,-500.0,0.00017754,2]
[401041444,1767892246053,-500.0,0.00017776,2]
[401041446,1767892246062,-530.66926965,0.00017809,2]
[401041448,1767892246071,-204.23035244,0.00017809,2]
[401041450,1767892246080,-500.0,0.00017809,2]
[401041452,1767892246089,-500.0,0.00017809,2]
[401041455,1767892246099,-474.27767129,0.00017809,2]
[401041457,1767892246111,-150.0,0.00017809,2]
[401041459,1767892246120,-500.0,0.00017809,2]
[401041461,1767892246129,-200.0,0.00017809,2]
[401041463,1767892246138,-500.0,0.00017809,2]
[401041465,1767892246148,-150.0,0.00017809,2]
[401041467,1767892246157,-150.0,0.00017809,2]
[401041469,1767892246166,-150.0,0.00017809,2]
[401041471,1767892246175,-150.0,0.00017809,2]
[401041473,1767892246184,-500.0,0.00017809,2]
[401041474,1767892246193,-150.0,0.00017809,2]
[401041479,1767892246203,-500.0,0.00017809,2]
[401041483,1767892246212,-500.0,0.00017809,2]
[401041486,1767892246222,-152.08698658,0.00017809,2]
[401041489,1767892246231,-500.0,0.00017809,2]
[401041492,1767892246241,-500.0,0.00017809,2]
[401041494,1767892246250,-500.0,0.00017809,2]
[401041496,1767892246262,-500.0,0.00017809,2]
[401041498,1767892246273,-500.0,0.00017809,2]
[401041500,1767892246283,-500.0,0.00017809,2]
[401041502,1767892246293,-500.0,0.00017809,2]
[401041504,1767892246303,-500.0,0.00017809,2]
[401041506,1767892246312,-157.72323008,0.00017826,2]
[401041508,1767892246322,-1047.53522858,0.0001783,2]
[401041511,1767892246332,-2000.0,0.00017855,2]
[401041513,1767892246342,-200.0,0.00017855,2]
[401041515,1767892246354,-200.0,0.00017856,2]
[401041519,1767892246363,-2000.0,0.00017856,2]
[401041523,1767892246373,-200.0,0.00017856,2]
[401041527,1767892246382,-200.0,0.00017856,2]
[401041530,1767892246392,-150.0,0.00017863,2]
[401041533,1767892246401,-500.0,0.00017863,2]
[401041536,1767892246410,-155.60141278,0.00017863,2]
[401041538,1767892246420,-500.0,0.00017863,2]
[401041540,1767892246429,-276.22792842,0.00017863,2]
[401041542,1767892246439,-157.21654538,0.00017863,2]
[401041544,1767892246448,-161.35165335,0.00017863,2]
[401041546,1767892246457,-150.0,0.00017863,2]
[401041548,1767892246467,-455.28552746,0.00017863,2]
[401041549,1767892246476,-217.19962447,0.00017863,2]
[401041552,1767892246485,-500.0,0.00017863,2]
[401041554,1767892246495,-182.10117033,0.00017863,2]
[401041556,1767892246504,-500.0,0.00017863,2]
[401041558,1767892246513,-500.0,0.00017863,2]
[401041560,1767892246524,-500.0,0.00017863,2]
[401041562,1767892246534,-500.0,0.00017863,2]
[401041564,1767892246543,-500.0,0.00017863,2]
[401041566,1767892246554,-500.0,0.00017863,2]
[401041568,1767892246564,-500.0,0.00017863,2]
[401041570,1767892246574,-200.0,0.00017863,2]
[401041572,1767892246583,-500.0,0.00017864,2]
[401041574,1767892246592,-322.3,0.00017869,2]
[401041576,1767892246604,-10000.0,0.00017873,2]
[401041578,1767892246613,-25000.0,0.000179,3]
[401041580,1767892246623,-1000.0,0.000179,2]
[401041582,1767892246632,-1452.3118346,0.000179,3]
[401041584,1767892246642,-150.78767594,0.000179,2]
[401041586,1767892246652,-1837.64885762,0.000179,2]
[401041588,1767892246661,-10864.220747,0.000179,2]
[401041590,1767892246670,-640.24385345,0.00017914,2]
[401041592,1767892246679,-334.5472959,0.00017914,2]
[401041594,1767892246689,-151.0,0.00017914,2]
[401041596,1767892246699,-440.48450822,0.00017918,2]
[401041598,1767892246708,-500.0,0.00017918,2]
[401041600,1767892246717,-157.03274317,0.00017918,2]
[401041602,1767892246727,-171.05172936,0.00017918,2]
[401041604,1767892246737,-500.0,0.00017918,2]
[401041606,1767892246746,-500.0,0.00017918,2]
[401041608,1767892246755,-261.09943952,0.00017918,2]
[401041610,1767892246765,-275.32921409,0.00017918,2]
[401041612,1767892246775,-500.0,0.00017918,2]
[401041614,1767892246784,-500.0,0.00017918,2]
[401041616,1767892246793,-500.0,0.00017918,2]
[401041619,1767892246803,-500.0,0.0001797,2]
[401041621,1767892246812,-235.35795411,0.00017973,2]
[401041623,1767892246821,-500.0,0.00017973,2]
[401041625,1767892246831,-505.27205439,0.00017973,2]
[401041627,1767892246841,-500.75581913,0.00017973,2]
[401041629,1767892246850,-500.0,0.00017973,2]
[401041631,1767892246860,-500.0,0.00017973,2]
[401041633,1767892246869,-500.0,0.00017973,2]
[401041635,1767892246879,-500.0,0.00017973,2]
[401041637,1767892246888,-500.0,0.00017973,2]
[401041639,1767892246898,-500.0,0.00017973,2]
[401041641,1767892246907,-500.0,0.00017973,2]
[401041643,1767892246917,-500.0,0.00017973,2]
[401041645,1767892246926,-500.0,0.00017973,2]
[401041647,1767892246936,-500.0,0.00017973,2]
[401041649,1767892246945,-500.0,0.00017973,2]
[401041651,1767892246955,-500.0,0.00017973,2]
[401041653,1767892246964,-295.72412489,0.00017973,2]
[401041655,1767892246973,-500.0,0.00017973,2]
[401041657,1767892246983,-500.0,0.00017973,2]
[401041659,1767892246997,-500.0,0.00017973,2]
[401041661,1767892247017,-500.0,0.00017973,2]
[401041663,1767892247039,-500.0,0.00017973,2]
[401041665,1767892247063,-150.0,0.00017973,2]
[401041667,1767892247085,-150.0,0.00017973,2]
[401041669,1767892247114,-500.0,0.00017978,2]
[401041671,1767892247145,-184835.0750566,0.00017992,2]
[401041673,1767892247176,-291.0,0.00017995,2]
[401041675,1767892247205,-167.06888269,0.00017999,2]
[401041677,1767892247233,-300.0,0.00017999,2]
[401041679,1767892247259,-1006.1979,0.00017999,2]
[401041681,1767892247281,-300.0,0.00017999,2]
[401041683,1767892247304,-300.0,0.00017999,2]
[401041685,1767892247331,-832.83677088,0.00017999,2]
[401041687,1767892247341,-162.2870781,0.00017999,2]
[401041689,1767892247351,-553.14539905,0.00017999,2]
[401041691,1767892247362,-300.0,0.00017999,2]
[401041693,1767892247372,-300.0,0.00017999,2]
[401041695,1767892247381,-666.0,0.00017999,2]
[401041696,1767892247391,-300.0,0.00017999,2]
[401041697,1767892247400,-300.0,0.00017999,2]
[401041698,1767892247410,-666.0,0.00017999,2]
[401041699,1767892247421,-300.0,0.00017999,2]
[401041700,1767892247431,-666.0,0.00017999,2]
[401041701,1767892247441,-300.0,0.00017999,2]
[401041702,1767892247450,-666.0,0.00017999,2]
[401041703,1767892247460,-300.0,0.00017999,2]
[401041704,1767892247469,-300.0,0.00017999,2]
[401041705,1767892247479,-666.0,0.00017999,2]
[401041706,1767892247488,-5970.77362135,0.00017999,2]
[401041707,1767892247498,-5000.0,0.00018,2]
[401041708,1767892247507,-2774470.46412197,0.00018,2]
[401041713,1767892247560,-3745.88,0.00018,2]
[401041715,1767892247572,-500.0,0.00018,2]
[401041863,1767892248977,-482.72,0.00016082,2]
[401041865,1767892248986,-2101.39823244,0.0001627,2]
[401041884,1767892249153,-909.13,0.0001627,2]
[401041886,1767892249164,-261.98000005,0.0001627,2]
[401041888,1767892249175,-688.7483796,0.0001627,2]
[401041891,1767892249195,-393.39206397,0.0001627,2]
[401041904,1767892249316,-91.2750476,0.0001627,2]
[401041908,1767892249366,-1797.61271401,0.0001627,2]
[401041911,1767892249411,-512.6900035,0.0001627,2]
[401041935,1767892249766,-5980.77355883,0.0001627,2]
[401041937,1767892249776,-171.35,0.00016356,2]
[401041939,1767892249785,-1967.68744286,0.00017414,2]
[401041941,1767892249796,-505.62490965,0.00017414,2]
[401045413,1767892290610,3050.0,0.000202,30]
[401045444,1767892316574,999.0,0.00011754,3]
[401045534,1767892522374,665.0,0.00020604,120]
[401045535,1767892524961,665.0,0.00021634,120]
[401045573,1767892752691,211.45,0.00012869,3]
[401045582,1767892811557,332.0,0.00020889,120]
[401045583,1767892813059,332.0,0.00021933,120]